bitfinex-derivatives/quotes_ETHF0:USTF0_20250115
["timestamp","ask_amount","ask_price","bid_price","bid_amount"]
[1736957120209,3.27738648,3353.5,3352.8,3.2078]
[1736957120414,4.40957643,3354.1,3352.8,3.2078]
[1736957120415,3.2078,3354.2,3353.4,6.12672643]
[1736957120612,29.77222,3358.7,3354.1,5.83785286]
[1736957120613,0.9824,3355.6,3354.1,5.83785286]
[1736957120917,0.59605,3355.3,3355.1,2.91892643]
[1736957121221,0.59608,3355.1,3354.7,4.30092643]
[1736957121414,0.59606,3355.2,3354.7,4.30092643]
[1736957121607,3.25435126,3355.3,3354.7,4.30092643]
[1736957121808,0.59605,3355.2,3354.7,4.30092643]
[1736957122013,3.25435126,3355.3,3354.7,4.30092643]
[1736957122522,0.59609,3355.1,3354.7,4.30092643]
[1736957122725,0.59619,3354.5,3354.3,2.91892643]
[1736957122922,3.14371697,3355.0,3354.3,2.91892643]
[1736957123117,3.2078,3355.4,3354.9,2.91892643]
[1736957123431,0.59609,3355.0,3354.9,2.91892643]
[1736957123613,3.2078,3355.0,3354.2,3.2078]
[1736957123815,3.2078,3354.6,3353.8,3.2078]
[1736957124114,0.59632,3353.7,3353.6,2.91892643]
[1736957124314,0.59632,3353.8,3353.6,2.91892643]
[1736957124511,3.98429528,3353.7,3353.6,2.91892643]
[1736957124918,3.2078,3353.8,3353.2,2.91892643]
[1736957125117,3.38797528,3353.7,3353.4,0.59636]
[1736957125312,3.2078,3354.7,3353.6,6.95883498]
[1736957125618,0.59624,3354.2,3353.6,6.95883498]
[1736957125821,0.59623,3354.2,3353.7,0.59631]
[1736957126113,3.2078,3353.9,3353.2,3.2078]
[1736957126321,0.59631,3353.8,3353.2,3.2078]
[1736957126511,3.16554702,3353.8,3353.2,3.2078]
[1736957126910,3.16554702,3353.8,3353.2,3.8042]
[1736957127109,3.16554702,3353.8,3353.2,3.2078]
[1736957127517,0.59633,3353.7,3353.2,3.2078]
[1736957127820,3.2078,3353.9,3353.2,3.2078]
[1736957128020,3.99005527,3353.6,3353.2,3.2078]
[1736957128215,3.39370527,3353.7,3353.2,3.2078]
[1736957128413,0.59638,3353.4,3353.2,3.2078]
[1736957128620,3.45255912,3353.5,3353.2,3.2078]
[1736957128915,3.2078,3353.9,3353.2,3.2078]
[1736957128916,3.2920758,3353.3,3353.2,3.2078]
[1736957129230,0.59648,3352.8,3352.7,3.2078]
[1736957129417,3.2078,3353.1,3352.6,3.15469498]
[1736957129615,3.2078,3353.5,3352.7,3.2078]
[1736957129811,4.41704918,3353.6,3352.7,3.2078]
[1736957129812,3.42074918,3353.0,3352.7,3.2078]
[1736957130020,3.42074918,3353.0,3352.3,0.59655]
[1736957130224,3.42074918,3353.4,3352.6,6.36249498]
[1736957130521,3.19718344,3353.0,3352.6,6.36249498]
[1736957130915,3.19718344,3353.3,3352.8,0.59647]
[1736957131125,0.24444551,3353.5,3353.0,3.2078]
[1736957131418,0.24444551,3353.5,3352.1,1.4915]
[1736957131419,0.59635,3353.6,3353.4,3.2078]
[1736957131924,3.26938548,3353.5,3353.4,3.2078]
[1736957132129,0.59635,3353.6,3353.4,3.20288627]
[1736957132317,3.07403758,3354.2,3353.4,3.20288627]
[1736957132514,3.16814739,3353.5,3353.4,3.20288627]
[1736957132924,0.59635,3353.6,3353.4,3.20288627]
[1736957133122,3.16814739,3353.6,3353.4,3.20288627]
[1736957133322,3.2078,3354.3,3353.4,3.20288627]
[1736957133519,0.59636,3353.5,3353.4,3.20288627]
[1736957133920,0.59625,3354.1,3353.4,3.20288627]
[1736957134225,0.59629,3353.9,3353.8,3.2078]
[1736957134430,0.59635,3353.6,3353.4,3.2078]
[1736957134616,3.333131,3353.9,3353.4,3.2078]
[1736957134820,3.333131,3353.9,3353.8,3.2078]
[1736957135124,3.2078,3354.9,3353.8,3.2078]
[1736957135125,0.59622,3354.3,3353.9,0.59627]
[1736957135318,0.59623,3354.3,3353.8,3.80409]
[1736957135521,0.59623,3354.3,3353.8,3.2078]
[1736957135725,0.59626,3354.1,3353.8,3.2078]
[1736957135931,0.59623,3354.3,3353.8,3.2078]
[1736957136224,2.99459013,3354.2,3353.9,0.59628]
[1736957136420,0.59623,3354.3,3353.8,3.8041]
[1736957136622,3.2078,3354.9,3353.8,3.8041]
[1736957136822,3.38752725,3354.2,3353.8,3.8041]
[1736957137030,3.38752725,3354.6,3353.8,3.2078]
[1736957137327,0.59628,3353.9,3353.8,3.2078]
[1736957137525,4.69745647,3354.5,3353.8,3.2078]
[1736957137826,0.59628,3353.9,3353.8,3.3075]
[1736957138526,3.96491097,3353.9,3353.8,3.3075]
[1736957138722,0.59628,3353.9,3353.8,3.3075]
[1736957139128,3.96491097,3353.9,3353.8,3.3075]
[1736957139330,0.59626,3354.1,3353.8,3.9038]
[1736957139529,3.2078,3354.9,3353.8,3.3075]
[1736957139734,3.71103644,3354.4,3354.3,3.2078]
[1736957140026,0.5962,3354.4,3354.3,3.2078]
[1736957140228,0.59627,3354.0,3353.9,3.2078]
[1736957140619,3.90920771,3354.0,3353.9,3.2078]
[1736957141422,0.59627,3354.0,3353.9,3.2078]
[1736957141824,3.79552536,3354.0,3353.9,3.2078]
[1736957142323,0.59628,3353.9,3353.8,0.0997]
[1736957142821,4.00716656,3353.9,3353.8,0.0997]
[1736957143227,7.21496656,3353.9,3353.8,0.0997]
[1736957143429,4.00716656,3353.9,3353.8,0.0997]
[1736957143829,3.44329162,3353.9,3353.8,0.0997]
[1736957144024,4.03958162,3353.9,3353.8,0.0997]
[1736957144630,4.03958162,3353.9,3353.8,0.1221]
[1736957146228,4.53175897,3353.9,3353.8,0.1221]
[1736957147522,4.49935391,3353.9,3353.8,0.1221]
[1736957147723,4.53249195,3353.9,3353.8,0.1221]
[1736957147932,0.59646,3352.9,3352.8,3.2078]
[1736957148832,0.62959804,3352.9,3352.8,3.2078]
[1736957149034,0.03313804,3352.9,3352.8,3.2078]
[1736957149222,0.03313804,3352.9,3352.8,3.80428]
[1736957149623,0.03313804,3352.9,3352.8,6.70732824]
[1736957150332,0.9686,3354.0,3352.9,1.49113]
[1736957150333,1.46077735,3354.0,3352.9,1.49113]
[1736957150533,0.5963,3353.8,3353.7,3.2078]
[1736957150730,3.72778363,3353.8,3353.7,3.2078]
[1736957150934,1.08847735,3353.8,3353.7,3.2078]
[1736957151332,3.13148363,3353.8,3353.2,6.11084824]
[1736957151533,0.59639,3353.3,3353.2,6.11084824]
[1736957151931,1.98294735,3353.8,3353.2,6.11084824]
[1736957152131,0.59639,3353.3,3353.2,6.70725824]
[1736957152638,1.49077,3353.8,3353.2,6.11084824]
[1736957152935,0.59639,3353.3,3353.2,3.2078]
[1736957154934,0.59646,3352.9,3352.8,3.2078]
[1736957156034,0.59646,3352.9,3352.8,3.3842]
[1736957157236,0.49323234,3353.3,3352.8,3.3842]
[1736957157539,3.3676565,3353.1,3352.9,0.59646]
[1736957157729,3.3676565,3353.1,3352.8,6.28724824]
[1736957157930,0.59638,3353.4,3353.3,0.59639]
[1736957158233,0.59629,3353.9,3353.3,3.2078]
[1736957158434,0.59637,3353.4,3353.3,3.80419]
[1736957158639,0.59637,3353.5,3353.3,3.80419]
[1736957158837,0.49330991,3353.7,3353.3,3.2078]
[1736957159038,0.49330991,3353.7,3353.6,3.49938824]
[1736957159438,1.0055,3354.1,3353.6,2.90304824]
[1736957159642,1.0055,3354.1,3353.9,3.2078]
[1736957159940,3.30674644,3354.0,3353.9,3.80409]
[1736957160140,0.59624,3354.2,3354.0,0.59627]
[1736957160342,2.52281,3354.7,3354.0,2.90304824]
[1736957160343,0.4933658,3354.6,3354.0,2.90304824]
[1736957160538,3.13469682,3354.3,3354.0,3.49930824]
[1736957160842,0.59627,3354.0,3353.9,3.2078]
[1736957161034,0.59627,3354.0,3353.9,3.80408]
[1736957161340,0.59627,3354.0,3353.9,3.2078]
[1736957162335,4.69829,3354.5,3353.9,3.2078]
[1736957162645,4.01471521,3354.2,3354.0,0.59625]
[1736957162843,0.59627,3354.0,3353.9,3.80408]
[1736957163145,3.41847521,3354.6,3353.9,3.2078]
[1736957163347,2.52278,3354.7,3353.9,3.2078]
[1736957163348,3.2078,3354.5,3353.9,3.2078]
[1736957163645,0.59627,3354.0,3353.9,3.2078]
[1736957164039,0.59627,3354.0,3353.4,7.82417573]
[1736957164040,3.44910539,3354.0,3353.4,7.82417573]
[1736957164243,3.44910539,3354.0,3353.4,3.2078]
[1736957164244,0.9647,3353.9,3353.4,3.2078]
[1736957164550,0.59629,3353.9,3353.4,6.11084824]
[1736957164749,2.45522,3354.4,3353.7,0.59631]
[1736957164949,0.59629,3353.9,3353.7,0.59631]
[1736957165546,0.59628,3354.0,3353.4,6.11084824]
[1736957165749,3.34845512,3354.3,3353.4,6.11084824]
[1736957165750,0.59629,3353.9,3353.7,0.59631]
[1736957166043,4.83902512,3354.3,3353.8,2.14411506]
[1736957166350,0.59629,3353.9,3353.8,5.35191506]
[1736957166541,3.19622348,3354.2,3353.8,5.35191506]
[1736957166848,0.9647,3354.4,3353.8,5.35191506]
[1736957166849,3.19622348,3354.3,3354.2,0.59623]
[1736957167041,3.2078,3354.9,3354.2,3.2078]
[1736957167247,1.49019,3355.1,3354.6,3.2078]
[1736957167248,1.0283,3355.1,3354.6,3.2078]
[1736957167645,3.31081281,3355.0,3354.6,3.2078]
[1736957167843,0.59614,3354.7,3354.6,3.2078]
[1736957168147,3.31081281,3355.0,3354.6,3.2078]
[1736957168341,0.59613,3354.8,3354.6,3.80395]
[1736957168547,0.59614,3354.7,3354.6,3.2078]
[1736957168751,0.59614,3354.8,3354.6,3.80396]
[1736957168952,0.59614,3354.7,3354.6,3.2078]
[1736957169353,0.59623,3354.2,3354.1,3.2078]
[1736957169663,3.43836322,3354.2,3353.7,3.2078]
[1736957169958,0.5963,3353.8,3353.7,3.2078]
[1736957170356,1.0271,3354.1,3353.7,3.2078]
[1736957170547,2.90304824,3355.2,3353.9,2.90304824]
[1736957170754,0.5962,3354.4,3354.2,0.59622]
[1736957171051,3.31195698,3354.5,3353.7,3.2078]
[1736957171263,0.59623,3354.2,3353.7,3.80411]
[1736957171558,3.25630588,3354.1,3353.7,3.2078]
[1736957171762,1.49072,3353.9,3353.2,2.90304824]
[1736957172054,4.18730588,3354.1,3353.4,0.59636]
[1736957172055,0.59635,3353.6,3353.4,0.59636]
[1736957172257,3.25630588,3353.8,3353.3,3.2078]
[1736957172451,6.07593734,3354.0,3353.3,3.2078]
[1736957172652,0.59637,3353.5,3353.3,3.80418]
[1736957172853,3.21000358,3353.9,3353.3,3.2078]
[1736957173053,0.59631,3353.8,3353.6,0.59633]
[1736957173359,3.21000358,3353.9,3353.7,3.2078]
[1736957173553,3.80630358,3353.9,3353.7,3.80411]
[1736957173957,0.931,3354.1,3353.7,3.2078]
[1736957174157,0.59629,3353.9,3353.7,3.80411]
[1736957174354,0.59629,3353.9,3353.8,0.5963]
[1736957174548,0.5963,3353.8,3353.7,3.2078]
[1736957174749,3.13362257,3354.0,3353.7,3.80411]
[1736957175060,0.5963,3353.9,3353.7,3.80411]
[1736957175362,0.5963,3353.9,3353.7,3.2078]
[1736957175561,0.59632,3353.8,3353.6,0.59633]
[1736957175758,0.59629,3353.9,3353.6,0.59633]
[1736957175956,0.59629,3353.9,3353.7,0.59631]
[1736957176156,0.5963,3353.8,3353.7,3.80411]
[1736957176363,0.5963,3353.8,3353.7,3.2078]
[1736957176562,3.87600276,3353.8,3353.7,3.2078]
[1736957176764,0.59635,3353.6,3353.4,0.59637]
[1736957177060,3.27970276,3354.0,3353.3,3.2078]
[1736957177259,0.59629,3353.9,3353.4,0.59637]
[1736957177456,4.77038276,3354.0,3353.3,3.2078]
[1736957177763,0.59637,3353.4,3353.3,3.2078]
[1736957178266,3.30141872,3354.0,3353.3,3.2078]
[1736957178464,0.59635,3353.6,3353.4,0.59637]
[1736957178660,0.59636,3353.5,3353.3,3.80418]
[1736957178964,1.49068,3354.0,3353.3,3.2078]
[1736957179367,0.59634,3353.6,3353.4,0.59636]
[1736957179562,0.59636,3353.5,3353.4,0.59636]
[1736957179757,0.59637,3353.4,3353.3,3.80419]
[1736957180266,0.59637,3353.5,3353.3,3.80419]
[1736957180464,0.59636,3353.5,3353.3,3.2078]
[1736957180669,0.59637,3353.4,3353.3,3.80418]
[1736957180869,3.76186598,3353.4,3353.3,3.80418]
[1736957181070,3.16549598,3353.4,3353.3,3.80418]
[1736957181262,0.59636,3353.5,3353.4,0.59637]
[1736957181462,1.49075,3353.9,3353.3,3.2078]
[1736957181768,3.96300314,3353.4,3353.3,3.80419]
[1736957181970,0.59637,3353.4,3353.3,3.80419]
[1736957182170,0.931,3354.1,3353.3,3.2078]
[1736957182370,0.931,3354.1,3353.5,0.59634]
[1736957182371,0.59635,3353.6,3353.5,0.59634]
[1736957183070,1.49068,3354.0,3353.3,3.2078]
[1736957183366,0.59637,3353.4,3353.3,3.2078]
[1736957183871,0.59637,3353.4,3353.3,3.80418]
[1736957184069,0.59637,3353.5,3353.4,0.59636]
[1736957184363,0.59637,3353.4,3353.3,3.2078]
[1736957184563,0.59637,3353.4,3353.3,3.80419]
[1736957184760,3.22682212,3353.5,3353.3,3.80419]
[1736957184761,3.82319212,3353.5,3353.4,0.59637]
[1736957185168,0.59637,3353.5,3353.4,0.59637]
[1736957185360,3.8237857,3353.5,3353.4,0.59637]
[1736957185558,3.8237857,3353.5,3353.3,3.2078]
[1736957185559,3.2274157,3353.5,3353.3,3.2078]
[1736957185762,0.59637,3353.4,3353.3,3.2078]
[1736957185971,9.33826394,3354.0,3352.9,3.2078]
[1736957186163,0.59645,3353.0,3352.9,3.2078]
[1736957186966,0.59652,3352.6,3352.5,3.2078]
[1736957187360,3.7272984,3352.6,3352.5,3.2078]
[1736957188467,3.1307784,3352.6,3352.5,3.2078]
[1736957188667,4.165,3353.2,3352.5,3.2078]
[1736957188976,0.59645,3353.0,3352.9,0.59646]
[1736957189166,0.59648,3352.9,3352.7,0.5965]
[1736957189368,3.39059257,3353.0,3352.8,0.59648]
[1736957189567,0.9572,3353.2,3352.6,2.90304824]
[1736957189766,1.55362,3353.2,3352.9,3.2078]
[1736957190070,0.59635,3353.6,3353.0,2.90304824]
[1736957190265,0.59626,3354.1,3353.9,0.59628]
[1736957190576,3.17466066,3354.0,3353.9,0.59628]
[1736957190866,3.77093066,3354.0,3353.8,3.2078]
[1736957191072,3.17466066,3354.0,3353.8,3.2078]
[1736957191268,0.59629,3353.9,3353.8,3.2078]
[1736957191467,0.59636,3353.5,3353.4,3.2078]
[1736957191872,3.84119416,3353.5,3353.4,3.2078]
[1736957192771,3.24483416,3353.5,3353.4,3.2078]
[1736957192967,3.2078,3354.1,3353.0,7.08014824]
[1736957193273,3.13233025,3354.0,3353.9,0.59627]
[1736957193671,3.78909643,3354.1,3353.8,3.2078]
[1736957193869,0.59628,3354.0,3353.8,3.80409]
[1736957194074,1.9213,3354.2,3353.4,3.2078]
[1736957194263,3.19284643,3354.0,3353.4,3.2078]
[1736957194571,0.59636,3353.5,3353.4,3.2078]
[1736957195075,0.59642,3353.2,3352.9,3.80425]
[1736957195262,3.32583764,3353.5,3352.9,3.2078]
[1736957195467,0.5965,3352.7,3352.6,1.014]
[1736957195671,3.2078,3353.3,3352.6,1.61052]
[1736957195672,0.59649,3352.8,3352.6,1.61052]
[1736957195874,0.59645,3353.0,3352.8,0.59648]
[1736957196168,3.40009606,3353.1,3353.0,0.59645]
[1736957196374,2.87492325,3353.2,3353.1,0.59643]
[1736957196574,0.59633,3353.7,3353.0,2.90304824]
[1736957196876,3.28992135,3353.7,3353.6,0.59633]
[1736957197272,0.59627,3354.1,3353.8,0.5963]
[1736957197670,0.59628,3354.0,3353.8,0.5963]
[1736957197979,3.80305366,3354.1,3353.9,0.59628]
[1736957198180,3.20680366,3354.1,3353.8,3.2078]
[1736957198369,0.59628,3354.0,3353.8,3.2078]
[1736957198673,3.20680366,3354.1,3353.9,0.59629]
[1736957198877,3.80305366,3354.1,3353.9,0.59629]
[1736957199173,4.72934,3354.2,3353.9,0.59629]
[1736957199375,1.0054,3354.5,3353.8,6.11084824]
[1736957199577,0.59624,3354.2,3354.0,0.59626]
[1736957200175,0.59624,3354.2,3353.9,0.59628]
[1736957200371,0.59626,3354.1,3353.8,6.70713824]
[1736957200572,3.138635,3354.4,3353.8,6.11084824]
[1736957200767,0.59623,3354.3,3354.0,0.59626]
[1736957201372,1.012,3354.8,3354.2,6.11084824]
[1736957201576,0.59617,3354.6,3354.4,0.59619]
[1736957201776,3.99975184,3354.7,3354.5,0.59617]
[1736957201978,3.99978184,3354.5,3354.3,0.5962]
[1736957202281,0.59618,3354.5,3354.3,0.5962]
[1736957202483,3.40360184,3354.7,3354.2,3.2078]
[1736957202684,0.59615,3354.7,3354.2,3.2078]
[1736957202884,0.59617,3354.6,3354.4,0.59619]
[1736957203179,3.41860926,3354.7,3354.6,0.59616]
[1736957203379,3.41860926,3354.7,3354.2,6.11084824]
[1736957203582,0.59616,3354.6,3354.3,0.5962]
[1736957203776,4.01476926,3354.7,3354.4,0.59619]
[1736957203979,0.59617,3354.6,3354.4,0.59619]
[1736957204170,4.01475926,3354.7,3354.2,3.2078]
[1736957204374,3.41860926,3354.7,3354.3,0.59621]
[1736957204582,0.59619,3354.5,3354.2,3.2078]
[1736957204777,4.69821,3354.6,3353.9,3.2078]
[1736957204977,0.59627,3354.0,3353.9,3.2078]
[1736957205382,0.9762,3354.4,3353.9,3.2078]
[1736957205683,0.59622,3354.3,3354.1,0.59624]
[1736957205883,0.59623,3354.2,3354.0,0.59626]
[1736957206276,0.59623,3354.2,3354.0,0.59627]
[1736957206586,0.59626,3354.1,3353.9,3.2078]
[1736957206775,0.59627,3354.0,3353.9,3.2078]
[1736957207175,4.83467894,3354.0,3353.3,3.2078]
[1736957207379,0.59642,3353.2,3353.0,0.59644]
[1736957207678,1.49085,3353.7,3352.9,3.2078]
[1736957207980,0.59645,3353.0,3352.9,3.2078]
[1736957208580,0.59652,3352.6,3352.5,0.1765]
[1736957209475,0.59653,3352.5,3352.4,0.01186]
[1736957209679,1.54853,3352.5,3352.4,0.01186]
[1736957209889,4.84759893,3352.5,3352.4,0.01186]
[1736957210977,3.89559893,3352.5,3352.4,0.01186]
[1736957212481,3.29906893,3352.5,3352.4,0.01186]
[1736957212684,0.59653,3352.5,3352.4,0.01186]
[1736957214085,3.94155007,3352.5,3352.4,0.01186]
[1736957214282,0.59653,3352.5,3352.4,0.01186]
[1736957214490,4.01182222,3352.5,3352.4,0.01186]
[1736957214679,0.59662,3352.0,3351.9,3.2078]
[1736957215091,4.01191222,3352.0,3351.9,3.2078]
[1736957215484,4.01191222,3352.0,3351.4,3.2078]
[1736957215485,6.62309222,3352.0,3351.4,3.2078]
[1736957215786,0.59671,3351.5,3351.4,3.2078]
[1736957216190,3.28574776,3351.5,3351.4,3.2078]
[1736957216380,3.28574776,3351.5,3351.0,3.8046]
[1736957216381,0.59675,3351.3,3351.0,3.8046]
[1736957216585,0.59674,3351.4,3351.0,3.80459]
[1736957216795,0.59677,3351.2,3351.0,3.2078]
[1736957217094,3.37910973,3351.8,3351.0,3.2078]
[1736957217294,0.59673,3351.4,3351.1,0.59677]
[1736957217492,3.37910973,3351.6,3351.0,3.2078]
[1736957217689,1.9641,3351.9,3351.0,3.2078]
[1736957217992,3.12201009,3351.8,3351.0,3.2078]
[1736957218188,1.9641,3351.9,3351.0,3.2078]
[1736957218385,3.12201009,3351.8,3351.0,3.2078]
[1736957218586,1.4917,3351.7,3351.0,3.2078]
[1736957218787,0.59678,3351.1,3351.0,3.2078]
[1736957219287,1.4917,3351.7,3351.0,3.2078]
[1736957219485,0.59678,3351.1,3351.0,3.2078]
[1736957219886,0.59678,3351.1,3351.0,3.8046]
[1736957220290,0.59678,3351.1,3351.0,3.2078]
[1736957220497,8.30402594,3351.1,3350.5,3.2078]
[1736957220792,0.59687,3350.6,3350.5,3.2078]
[1736957220993,2.90304824,3350.7,3349.8,0.59701]
[1736957220994,0.59696,3350.2,3349.8,0.59701]
[1736957221188,0.59696,3350.1,3349.7,0.59703]
[1736957221392,3.23360127,3350.1,3350.0,0.59697]
[1736957221595,0.59696,3350.1,3349.8,0.59701]
[1736957222296,0.59696,3350.1,3349.7,0.59703]
[1736957222489,6.11084824,3350.7,3349.6,3.2078]
[1736957222694,3.2078,3350.7,3350.0,3.2078]
[1736957222992,3.37626945,3350.6,3350.5,0.59688]
[1736957223188,2.8773,3351.0,3350.0,3.2078]
[1736957223391,2.8773,3351.0,3349.4,3.2078]
[1736957223392,2.90304824,3350.3,3349.4,3.2078]
[1736957223595,0.59707,3349.5,3349.4,3.2078]
[1736957224098,0.59707,3349.5,3348.5,4.64154196]
[1736957224099,11.52180133,3349.5,3348.5,7.84934196]
[1736957224397,3.2078,3349.0,3348.5,7.84934196]
[1736957224595,3.2078,3349.4,3348.5,7.84934196]
[1736957224798,3.2078,3349.4,3348.6,0.9646]
[1736957225109,3.44303047,3349.1,3348.6,1.56182]
[1736957225304,3.44303047,3349.3,3348.6,0.9646]
[1736957225496,0.59715,3349.1,3348.7,0.5972]
[1736957225701,3.21943748,3349.3,3348.7,0.5972]
[1736957225906,0.59714,3349.2,3348.8,0.59718]
[1736957226111,3.21943748,3349.3,3349.1,0.59714]
[1736957226404,3.21943748,3349.1,3348.5,3.2078]
[1736957226606,0.59716,3349.0,3348.5,4.2106]
[1736957226809,0.59723,3348.6,3348.5,3.2078]
[1736957227000,3.27928678,3348.9,3348.1,0.59731]
[1736957227201,3.2078,3349.0,3348.0,3.2078]
[1736957227202,3.2078,3348.5,3348.0,3.2078]
[1736957227705,3.3277183,3348.4,3347.9,1.0028]
[1736957227905,0.59738,3347.8,3347.6,1.0228]
[1736957228111,3.2078,3348.1,3347.6,1.0228]
[1736957228305,3.2078,3348.1,3348.0,0.59734]
[1736957228603,3.3277183,3348.0,3347.9,0.59735]
[1736957228801,3.80504,3348.6,3348.3,0.59727]
[1736957228998,3.2078,3348.6,3348.5,0.59725]
[1736957229202,3.18611056,3348.5,3348.4,0.59726]
[1736957229400,3.2078,3349.0,3348.4,3.2078]
[1736957229597,3.17896261,3348.9,3348.4,3.2078]
[1736957229805,0.59725,3348.6,3348.5,40.0]
[1736957230199,2.90304824,3349.4,3348.8,0.59719]
[1736957230200,3.17896261,3348.9,3348.8,0.59719]
[1736957230403,3.2078,3349.4,3348.5,43.2078]
[1736957230707,3.11406352,3349.0,3348.9,0.59718]
[1736957230910,3.2078,3349.4,3348.7,0.5972]
[1736957231112,0.59719,3348.9,3348.6,0.59722]
[1736957231307,0.59718,3348.9,3348.7,0.59721]
[1736957231507,3.11406352,3348.8,3348.7,0.5972]
[1736957231707,3.11406352,3348.8,3348.5,3.2078]
[1736957231908,0.59722,3348.7,3348.5,3.80504]
[1736957232109,3.44689767,3349.3,3348.5,3.2078]
[1736957232308,3.44689767,3348.6,3348.5,3.80505]
[1736957232507,3.44689767,3348.8,3348.5,3.2078]
[1736957232712,3.44943263,3349.3,3348.5,3.2078]
[1736957232915,3.2078,3349.4,3348.9,0.59717]
[1736957232916,0.59715,3349.1,3348.9,0.59717]
[1736957233205,3.2078,3349.4,3348.5,3.2078]
[1736957233206,3.44943263,3349.0,3348.5,3.2078]
[1736957233399,0.59723,3348.6,3348.5,3.2078]
[1736957233604,0.59719,3348.9,3348.7,0.5972]
[1736957234000,3.0619863,3348.8,3348.7,0.5972]
[1736957234206,3.0619863,3348.8,3348.2,1.0028]
[1736957234410,0.59721,3348.7,3348.4,0.59725]
[1736957234712,0.59722,3348.7,3348.6,0.59723]
[1736957235019,3.12079958,3348.6,3348.5,0.59724]
[1736957235408,3.2078,3349.0,3348.2,1.0028]
[1736957235807,0.59725,3348.5,3348.4,0.59726]
[1736957236412,0.59728,3348.3,3348.2,1.0028]
[1736957236610,0.59727,3348.4,3348.2,1.0028]
[1736957236908,3.18868892,3348.5,3348.2,1.0028]
[1736957237110,3.27032664,3348.3,3347.6,1.0228]
[1736957237314,3.2078,3348.2,3347.6,1.0228]
[1736957237509,3.2078,3348.2,3347.3,0.9333]
[1736957237710,3.39741021,3348.1,3347.3,1.9311]
[1736957238411,0.59734,3348.0,3347.3,1.9311]
[1736957238713,3.2078,3347.8,3347.3,0.9333]
[1736957238910,0.59746,3347.3,3347.2,3.2078]
[1736957239110,3.2078,3347.4,3346.9,1.382]
[1736957239412,3.2078,3347.8,3347.1,3.2078]
[1736957239619,6.58111425,3347.8,3347.1,6.11084824]
[1736957239825,3.37974859,3347.9,3347.5,3.2078]
[1736957240115,2.95494593,3348.1,3347.8,0.59737]
[1736957240314,2.95494593,3348.1,3347.5,3.2078]
[1736957240315,3.37974859,3347.8,3347.5,3.2078]
[1736957240517,0.59742,3347.6,3347.3,0.59744]
[1736957240705,0.59743,3347.5,3347.3,0.59744]
[1736957240905,0.59744,3347.4,3347.2,0.59746]
[1736957241312,3.2078,3347.8,3347.3,0.59745]
[1736957241515,0.59743,3347.5,3347.3,0.59745]
[1736957241907,3.31389669,3347.4,3347.3,0.59745]
[1736957242107,0.59748,3347.3,3347.1,0.59749]
[1736957242317,3.31389669,3347.4,3346.8,1.382]
[1736957242615,0.59745,3347.4,3346.8,2.87588]
[1736957242817,4.70124,3347.8,3346.8,1.382]
[1736957243010,3.2040446,3347.3,3346.8,1.382]
[1736957243206,3.2078,3347.4,3346.8,1.382]
[1736957243409,0.59739,3347.7,3347.2,1.4937]
[1736957243619,0.59739,3347.7,3346.9,1.49384]
[1736957243620,3.2078,3347.8,3346.9,1.382]
[1736957243916,3.90349034,3347.5,3347.4,0.59744]
[1736957244116,0.59743,3347.5,3347.4,0.59744]
[1736957245420,3.2078,3347.8,3347.1,3.2078]
[1736957245421,3.2078,3347.8,3347.1,6.11084824]
[1736957245617,3.2078,3347.8,3347.7,0.59739]
[1736957245819,3.2078,3347.8,3347.1,6.11084824]
[1736957246115,3.40338681,3347.7,3347.1,3.2078]
[1736957246313,0.59743,3347.5,3347.4,0.59744]
[1736957246518,3.2078,3347.8,3347.1,3.2078]
[1736957246721,0.59747,3347.3,3347.2,0.59747]
[1736957246917,1.49353,3347.6,3346.9,1.382]
[1736957247424,0.59749,3347.2,3347.1,0.59748]
[1736957247616,0.59751,3347.1,3347.0,0.59751]
[1736957247819,0.59744,3347.4,3347.1,0.59748]
[1736957248017,3.18868496,3347.5,3346.9,1.382]
[1736957248215,0.59749,3347.2,3347.1,0.59749]
[1736957248423,0.55032367,3347.6,3346.7,5.1259]
[1736957248617,3.87156928,3347.2,3347.1,0.59749]
[1736957248924,0.59749,3347.2,3346.7,5.1259]
[1736957249119,3.87156928,3347.2,3347.0,0.5975]
[1736957249321,3.27407928,3347.2,3347.1,0.5975]
[1736957249512,3.2078,3347.8,3347.1,3.8053]
[1736957249718,3.2078,3347.8,3347.7,0.59739]
[1736957250015,3.1682745,3347.7,3347.6,0.59741]
[1736957250225,3.1682745,3347.7,3347.2,2.90304824]
[1736957250226,0.59745,3347.4,3347.1,3.2078]
[1736957250422,3.2078,3347.8,3347.1,3.2078]
[1736957250724,0.59744,3347.5,3347.4,0.59744]
[1736957250915,0.59747,3347.3,3347.2,0.59747]
[1736957251120,3.16787514,3347.5,3347.4,0.59744]
[1736957251425,0.59743,3347.5,3347.4,0.59744]
[1736957251921,0.59748,3347.2,3347.1,3.80529]
[1736957252317,3.20599624,3347.5,3347.1,3.2078]
[1736957252318,4.12849624,3347.5,3347.1,3.2078]
[1736957252525,3.80518,3347.8,3347.7,0.59739]
[1736957252826,6.96871175,3347.8,3347.7,0.59739]
[1736957253120,3.76091175,3347.8,3347.7,0.59739]
[1736957253919,3.16354175,3347.8,3347.7,0.59739]
[1736957254119,4.72761,3348.2,3348.1,0.59732]
[1736957254326,1.0143,3348.6,3347.7,0.59739]
[1736957254522,3.2078,3348.7,3347.7,3.90624824]
[1736957254820,3.4247318,3348.5,3348.4,0.59725]
[1736957255026,3.4247318,3348.6,3348.5,0.59725]
[1736957255227,4.0219518,3348.7,3348.6,0.59723]
[1736957255422,3.4247318,3348.9,3348.8,0.59719]
[1736957255625,3.2078,3349.1,3348.8,0.59719]
[1736957255824,3.79316199,3349.0,3348.8,0.59719]
[1736957256130,3.2078,3349.1,3349.0,0.59716]
[1736957256423,3.19599199,3349.0,3348.9,0.59718]